[Event "*** Titled Tuesday Blitz"]
[Site "Chess.com"]
[Date "2021.04.06"]
[Round "5"]
[White "Snowflake"]
[Black "LEGENYA1998"]
[Result "1-0"]
[WhiteElo "2499"]
[BlackElo "2225"]
[TimeControl "180+1"]
[EndTime "11:00:02 PDT"]
[Termination "Snowflake won by resignation"]

1. d4 {[%clk 0:03:00.9]} 1... Nf6 {[%clk 0:02:59.6]} 2. Nf3 {[%clk 0:03:00]}
2... e6 {[%clk 0:02:59.6]} 3. Bg5 {[%clk 0:03:00.2]} 3... b6 {[%clk 0:02:57.7]}
4. g3 {[%clk 0:02:50]} 4... Bb7 {[%clk 0:02:57.6]} 5. Bg2 {[%clk 0:02:33.3]}
5... h6 {[%clk 0:02:56.5]} 6. Bxf6 {[%clk 0:02:31.5]} 6... Qxf6 {[%clk
0:02:56.2]} 7. O-O {[%clk 0:02:31.5]} 7... d6 {[%clk 0:02:54.6]} 8. Nbd2 {[%clk
0:02:31.5]} 8... Qd8 {[%clk 0:02:49.9]} 9. e4 {[%clk 0:02:31.6]} 9... Be7 {[%clk
0:02:49.7]} 10. c3 {[%clk 0:02:30.7]} 10... O-O {[%clk 0:02:49.6]} 11. Re1
{[%clk 0:02:29.5]} 11... Nd7 {[%clk 0:02:49.4]} 12. h4 {[%clk 0:02:27.5]} 12...
c5 {[%clk 0:02:46.7]} 13. Qe2 {[%clk 0:02:26.9]} 13... e5 {[%clk 0:02:41.4]} 14.
d5 {[%clk 0:02:23.7]} 14... a5 {[%clk 0:02:40.3]} 15. a4 {[%clk 0:02:23]} 15...
Ba6 {[%clk 0:02:37.2]} 16. Qe3 {[%clk 0:02:22.6]} 16... Nf6 {[%clk 0:02:37]} 17.
Nh2 {[%clk 0:02:20]} 17... Qd7 {[%clk 0:02:36.6]} 18. Bf1 {[%clk 0:02:15]} 18...
b5 {[%clk 0:02:32.8]} 19. axb5 {[%clk 0:02:09.2]} 19... Bxb5 {[%clk 0:02:33.1]}
20. Nc4 {[%clk 0:02:08.6]} 20... Bxc4 {[%clk 0:02:26.8]} 21. Bxc4 {[%clk
0:02:09.5]} 21... Rfb8 {[%clk 0:02:26.9]} 22. Qe2 {[%clk 0:02:05.8]} 22... Qc7
{[%clk 0:02:21.7]} 23. Ra2 {[%clk 0:02:03.2]} 23... Nd7 {[%clk 0:02:06.7]} 24.
Rea1 {[%clk 0:01:49.4]} 24... Bd8 {[%clk 0:01:44.9]} 25. Kg2 {[%clk 0:01:46.9]}
25... Nf6 {[%clk 0:01:42.4]} 26. Ng4 {[%clk 0:01:42.6]} 26... Nxg4 {[%clk
0:01:42]} 27. Qxg4 {[%clk 0:01:43.5]} 27... Qc8 {[%clk 0:01:40.9]} 28. Qxc8
{[%clk 0:01:37.9]} 28... Rxc8 {[%clk 0:01:41.1]} 29. Bb5 {[%clk 0:01:38.3]}
29... Rcb8 {[%clk 0:01:41.3]} 30. c4 {[%clk 0:01:37.3]} 30... Bb6 {[%clk
0:01:40.9]} 31. b3 {[%clk 0:01:36.9]} 31... Ra7 {[%clk 0:01:39.9]} 32. Kf3
{[%clk 0:01:36.1]} 32... Re7 {[%clk 0:01:32.9]} 33. Kg4 {[%clk 0:01:37]} 33...
g6 {[%clk 0:01:31.9]} 34. Kh3 {[%clk 0:01:36.7]} 34... Kg7 {[%clk 0:01:31.7]}
35. Re1 {[%clk 0:01:36.7]} 35... Rf8 {[%clk 0:01:28.8]} 36. g4 {[%clk 0:01:35]}
36... g5 {[%clk 0:01:28.5]} 37. f3 {[%clk 0:01:31.8]} 37... Ra7 {[%clk
0:01:19.2]} 38. Rh1 {[%clk 0:01:28.3]} 38... Bc7 {[%clk 0:01:16.3]} 39. Kg3
{[%clk 0:01:28]} 39... Rh8 {[%clk 0:01:05.6]} 40. Rah2 {[%clk 0:01:26.2]} 40...
Raa8 {[%clk 0:01:05.5]} 41. Bc6 {[%clk 0:01:12.3]} 41... Rab8 {[%clk 0:01:04.7]}
42. Bb5 {[%clk 0:01:13.2]} 42... Ra8 {[%clk 0:01:03.7]} 43. Rh3 {[%clk 0:01:11]}
43... Rab8 {[%clk 0:01:03]} 44. Kf2 {[%clk 0:00:56.6]} 44... Ra8 {[%clk
0:00:56.9]} 45. Ke3 {[%clk 0:00:50.7]} 45... Rab8 {[%clk 0:00:39]} 46. Kd3
{[%clk 0:00:51.1]} 46... Ra8 {[%clk 0:00:39.1]} 47. Kc2 {[%clk 0:00:51.7]} 47...
Rab8 {[%clk 0:00:39.3]} 48. Kb2 {[%clk 0:00:52.3]} 48... Ra8 {[%clk 0:00:38.4]}
49. Ka3 {[%clk 0:00:52.8]} 49... Rab8 {[%clk 0:00:38.6]} 50. Ka4 {[%clk
0:00:53.2]} 50... Bd8 {[%clk 0:00:37.9]} 51. Ka3 {[%clk 0:00:50]} 51... Bc7
{[%clk 0:00:38]} 52. hxg5 {[%clk 0:00:38.7]} 52... hxg5 {[%clk 0:00:37.8]} 53.
Rxh8 {[%clk 0:00:38.5]} 53... Rxh8 {[%clk 0:00:37.8]} 54. Rxh8 {[%clk
0:00:39.4]} 54... Kxh8 {[%clk 0:00:38.4]} 55. Ka4 {[%clk 0:00:34.1]} 55... Kg7
{[%clk 0:00:36.4]} 56. Ba6 {[%clk 0:00:32.6]} 56... Kf6 {[%clk 0:00:35.9]} 57.
Kb5 {[%clk 0:00:32.7]} 57... Ke7 {[%clk 0:00:36.1]} 58. Kc6 {[%clk 0:00:33.1]}
58... Bd8 {[%clk 0:00:34.2]} 59. Kb7 {[%clk 0:00:28.8]} 59... a4 {[%clk
0:00:23.4]} 60. bxa4 {[%clk 0:00:27.8]} 60... Ba5 {[%clk 0:00:23.4]} 61. Bb5
{[%clk 0:00:20.9]} 61... Kd8 {[%clk 0:00:20.7]} 62. Bc6 {[%clk 0:00:18.7]} 62...
Bc7 {[%clk 0:00:18.9]} 63. Be8 {[%clk 0:00:13.8]} 63... f6 {[%clk 0:00:18.1]}
64. Bb5 {[%clk 0:00:14]} 64... Ba5 {[%clk 0:00:16.8]} 65. Bc6 {[%clk 0:00:09.6]}
65... Bc7 {[%clk 0:00:16.6]} 66. Bb5 {[%clk 0:00:02.8]} 66... Ba5 {[%clk
0:00:16.7]} 67. Ka6 {[%clk 0:00:03.7]} 67... Bc7 {[%clk 0:00:16.7]} 68. Bc6
{[%clk 0:00:04.2]} 68... Kc8 {[%clk 0:00:16.3]} 69. Kb5 {[%clk 0:00:04.8]} 69...
Kb8 {[%clk 0:00:16]} 70. a5 {[%clk 0:00:04.9]} 70... Ka7 {[%clk 0:00:16]} 71. a6
{[%clk 0:00:05.3]} 71... Bb6 {[%clk 0:00:14.9]} 72. Bb7 {[%clk 0:00:06.2]} 72...
Bc7 {[%clk 0:00:14.6]} 73. Kc6 {[%clk 0:00:07.1]} 73... Bb8 {[%clk 0:00:14.4]}
74. Kd7 {[%clk 0:00:07.1]} 74... Kb6 {[%clk 0:00:13.8]} 75. Ke7 {[%clk
0:00:07.3]} 75... Ka5 {[%clk 0:00:14.3]} 76. Kxf6 {[%clk 0:00:07.4]} 76... Kb4
{[%clk 0:00:14.9]} 77. Kxg5 {[%clk 0:00:07.8]} 77... Kxc4 {[%clk 0:00:15.5]} 78.
a7 {[%clk 0:00:07.2]} 78... Bxa7 {[%clk 0:00:15.3]} 79. f4 {[%clk 0:00:07.8]}
79... exf4 {[%clk 0:00:13.3]} 80. Kxf4 {[%clk 0:00:08.7]} 80... Kd3 {[%clk
0:00:13.5]} 81. g5 {[%clk 0:00:08.1]} 81... c4 {[%clk 0:00:14]} 82. Ba6 {[%clk
0:00:07.8]} 82... Kc3 {[%clk 0:00:10]} 83. g6 {[%clk 0:00:07.2]} 83... Bd4
{[%clk 0:00:10]} 84. Kf5 {[%clk 0:00:07.6]} 84... Be5 {[%clk 0:00:09.4]} 85. Ke6
{[%clk 0:00:05.9]} 85... Kb3 {[%clk 0:00:09.4]} 86. Kf7 {[%clk 0:00:05.5]} 86...
c3 {[%clk 0:00:09]} 87. Bd3 {[%clk 0:00:06.4]} 87... c2 {[%clk 0:00:09.2]} 88.
Bxc2+ {[%clk 0:00:06.1]} 88... Kxc2 {[%clk 0:00:09.6]} 89. g7 {[%clk 0:00:05.5]}
89... Bxg7 {[%clk 0:00:10.2]} 90. Kxg7 {[%clk 0:00:06.4]} 90... Kc3 {[%clk
0:00:09]} 91. Kf6 {[%clk 0:00:06.8]} 91... Kd4 {[%clk 0:00:09.6]} 92. Ke6 {[%clk
0:00:07]} 92... Kc5 {[%clk 0:00:10]} 93. Kd7 {[%clk 0:00:04]} 93... Kd4 {[%clk
0:00:09.9]} 94. Kxd6 {[%clk 0:00:04.9]} 94... Kxe4 {[%clk 0:00:10.4]} 95. Ke6
{[%clk 0:00:05.8]} 95... Kd4 {[%clk 0:00:10.6]} 96. d6 {[%clk 0:00:06.7]} 1-0

[Event "*** Titled Tuesday Blitz"]
[Site "Chess.com"]
[Date "2021.04.06"]
[Round "6"]
[White "banane_verte"]
[Black "attack2mateU"]
[Result "1-0"]
[WhiteElo "2441"]
[BlackElo "2677"]
[TimeControl "180+1"]
[EndTime "11:02:19 PDT"]
[Termination "banane_verte won by resignation"]

1. e4 {[%clk 0:03:00.9]} 1... c5 {[%clk 0:02:56.8]} 2. Nc3 {[%clk 0:02:49.5]}
2... d6 {[%clk 0:02:56]} 3. d4 {[%clk 0:02:46.8]} 3... cxd4 {[%clk 0:02:56.9]}
4. Qxd4 {[%clk 0:02:47.7]} 4... Nc6 {[%clk 0:02:57]} 5. Bb5 {[%clk 0:02:48.1]}
5... Bd7 {[%clk 0:02:56.7]} 6. Bxc6 {[%clk 0:02:48.7]} 6... Bxc6 {[%clk
0:02:57.6]} 7. Nf3 {[%clk 0:02:49.3]} 7... Nf6 {[%clk 0:02:54]} 8. Bg5 {[%clk
0:02:48.5]} 8... e6 {[%clk 0:02:54.1]} 9. O-O-O {[%clk 0:02:47.7]} 9... Be7
{[%clk 0:02:54.7]} 10. Bxf6 {[%clk 0:02:47.8]} 10... Bxf6 {[%clk 0:02:52.1]} 11.
Qxd6 {[%clk 0:02:47.8]} 11... Qxd6 {[%clk 0:02:48.8]} 12. Rxd6 {[%clk
0:02:48.7]} 12... Bxc3 {[%clk 0:02:49.1]} 13. bxc3 {[%clk 0:02:49.6]} 13... Bxe4
{[%clk 0:02:49.4]} 14. Ne5 {[%clk 0:02:48.6]} 14... f6 {[%clk 0:02:38.1]} 15.
Rxe6+ {[%clk 0:02:47.9]} 1-0

[Event "*** Titled Tuesday Blitz"]
[Site "Chess.com"]
[Date "2021.04.06"]
[Round "6"]
[White "VladimirBugayev"]
[Black "Willhaven3"]
[Result "0-1"]
[WhiteElo "2259"]
[BlackElo "2500"]
[TimeControl "180+1"]
[EndTime "11:03:19 PDT"]
[Termination "Willhaven3 won by resignation"]

1. e4 {[%clk 0:03:00.9]} 1... c5 {[%clk 0:02:53]} 2. Nc3 {[%clk 0:03:00.4]} 2...
Nc6 {[%clk 0:02:52.2]} 3. Bb5 {[%clk 0:03:00.9]} 3... Nd4 {[%clk 0:02:51.3]} 4.
Nf3 {[%clk 0:03:01.5]} 4... Nxb5 {[%clk 0:02:49.9]} 5. Nxb5 {[%clk 0:03:02.4]}
5... g6 {[%clk 0:02:49.7]} 6. d4 {[%clk 0:03:01.1]} 6... Bg7 {[%clk 0:02:49.6]}
7. c4 {[%clk 0:02:59.5]} 7... cxd4 {[%clk 0:02:47.6]} 8. Nfxd4 {[%clk
0:02:52.6]} 8... a6 {[%clk 0:02:44.6]} 9. Nc3 {[%clk 0:02:52]} 9... d6 {[%clk
0:02:44.2]} 10. O-O {[%clk 0:02:50.4]} 10... Nf6 {[%clk 0:02:44.3]} 11. f3
{[%clk 0:02:49.4]} 11... Qb6 {[%clk 0:02:42.8]} 12. Be3 {[%clk 0:01:58.9]} 12...
Qxb2 {[%clk 0:02:40.6]} 13. Na4 {[%clk 0:01:58.9]} 13... Qa3 {[%clk 0:02:35.5]}
14. Nb6 {[%clk 0:01:49.4]} 14... Qxe3+ {[%clk 0:02:33.7]} 0-1

[Event "*** Titled Tuesday Blitz"]
[Site "Chess.com"]
[Date "2021.04.06"]
[Round "6"]
[White "PushingpawnsNYC"]
[Black "Dave_ChessMate"]
[Result "1-0"]
[WhiteElo "2322"]
[BlackElo "2476"]
[TimeControl "180+1"]
[EndTime "11:03:44 PDT"]
[Termination "PushingpawnsNYC won by resignation"]

1. e4 {[%clk 0:02:54.3]} 1... c5 {[%clk 0:02:59.9]} 2. Nc3 {[%clk 0:02:53.2]}
2... Nc6 {[%clk 0:02:57.9]} 3. Bb5 {[%clk 0:02:52.1]} 3... Nd4 {[%clk 0:02:58]}
4. Nf3 {[%clk 0:02:51.9]} 4... e6 {[%clk 0:02:56.6]} 5. O-O {[%clk 0:02:51]}
5... Qc7 {[%clk 0:02:55.7]} 6. Nxd4 {[%clk 0:02:45.8]} 6... cxd4 {[%clk
0:02:55.7]} 7. Ne2 {[%clk 0:02:46.3]} 7... Qe5 {[%clk 0:02:41.1]} 8. Bd3 {[%clk
0:02:42.3]} 8... g5 {[%clk 0:02:38.4]} 9. c3 {[%clk 0:02:38.4]} 9... dxc3 {[%clk
0:02:32.9]} 10. dxc3 {[%clk 0:02:38]} 10... Bd6 {[%clk 0:02:30.7]} 11. g3 {[%clk
0:02:26.1]} 11... Ne7 {[%clk 0:02:28.3]} 12. Be3 {[%clk 0:02:25.9]} 12... b6
{[%clk 0:02:23.6]} 13. Bd4 {[%clk 0:02:16]} 13... Qa5 {[%clk 0:02:17.9]} 14. b4
{[%clk 0:02:11.1]} 14... Qa3 {[%clk 0:02:16.2]} 15. Bxh8 {[%clk 0:02:10.3]}
15... Bb7 {[%clk 0:02:16.2]} 16. Qb3 {[%clk 0:02:02]} 16... Qxb3 {[%clk
0:02:14.4]} 17. axb3 {[%clk 0:02:02.2]} 17... O-O-O {[%clk 0:02:09.4]} 18. Bf6
{[%clk 0:02:00.1]} 18... Kb8 {[%clk 0:02:07]} 19. e5 {[%clk 0:01:57.3]} 1-0

[Event "*** Titled Tuesday Blitz"]
[Site "Chess.com"]
[Date "2021.04.06"]
[Round "6"]
[White "superchess02"]
[Black "NateSolon"]
[Result "1-0"]
[WhiteElo "2821"]
[BlackElo "2627"]
[TimeControl "180+1"]
[EndTime "11:04:11 PDT"]
[Termination "superchess02 won by resignation"]

1. f4 {[%clk 0:03:00.9]} 1... d5 {[%clk 0:02:58.6]} 2. Nf3 {[%clk 0:03:01]} 2...
Bg4 {[%clk 0:02:57.9]} 3. e3 {[%clk 0:02:59.5]} 3... Nd7 {[%clk 0:02:55.5]} 4.
Be2 {[%clk 0:02:59.5]} 4... Ngf6 {[%clk 0:02:52.3]} 5. b3 {[%clk 0:02:59.5]}
5... Bxf3 {[%clk 0:02:51]} 6. Bxf3 {[%clk 0:02:59]} 6... e5 {[%clk 0:02:51.9]}
7. fxe5 {[%clk 0:02:57.3]} 7... Nxe5 {[%clk 0:02:52.8]} 8. Bb2 {[%clk
0:02:57.8]} 8... Bd6 {[%clk 0:02:52.6]} 9. O-O {[%clk 0:02:56.6]} 9... Qe7
{[%clk 0:02:52.6]} 10. h3 {[%clk 0:02:52.9]} 10... c6 {[%clk 0:02:51.1]} 11. Nc3
{[%clk 0:02:50]} 11... O-O-O {[%clk 0:02:49.5]} 12. Ne2 {[%clk 0:02:47.9]} 12...
h5 {[%clk 0:02:47.3]} 13. Nd4 {[%clk 0:02:46.8]} 13... g6 {[%clk 0:02:41.9]} 14.
c4 {[%clk 0:02:40.7]} 14... dxc4 {[%clk 0:02:39.7]} 15. bxc4 {[%clk 0:02:40.9]}
15... Kb8 {[%clk 0:02:17.8]} 16. Rb1 {[%clk 0:02:39]} 16... Ka8 {[%clk
0:02:16.6]} 17. Nxc6 {[%clk 0:02:26.8]} 17... Nxf3+ {[%clk 0:01:18.2]} 18. Qxf3
{[%clk 0:02:25.7]} 18... Qe4 {[%clk 0:01:18.3]} 19. Nxd8 {[%clk 0:02:22.3]} 1-0

[Event "*** Titled Tuesday Blitz"]
[Site "Chess.com"]
[Date "2021.04.06"]
[Round "6"]
[White "Tekushka"]
[Black "2008king"]
[Result "1-0"]
[WhiteElo "2396"]
[BlackElo "2208"]
[TimeControl "180+1"]
[EndTime "11:04:19 PDT"]
[Termination "Tekushka won by resignation"]

1. e4 {[%clk 0:03:00.9]} 1... e5 {[%clk 0:02:59.4]} 2. Nf3 {[%clk 0:03:00.8]}
2... Nc6 {[%clk 0:02:59.1]} 3. Bc4 {[%clk 0:03:00.9]} 3... Bc5 {[%clk
0:02:58.9]} 4. c3 {[%clk 0:03:00.9]} 4... Nf6 {[%clk 0:02:58.8]} 5. d4 {[%clk
0:03:01.1]} 5... exd4 {[%clk 0:02:59.7]} 6. e5 {[%clk 0:03:01.4]} 6... d5 {[%clk
0:02:59.1]} 7. Bb5 {[%clk 0:03:01.3]} 7... Ne4 {[%clk 0:02:59.5]} 8. cxd4 {[%clk
0:03:01.5]} 8... Bb4+ {[%clk 0:02:59.6]} 9. Bd2 {[%clk 0:03:00.2]} 9... Nxd2
{[%clk 0:02:54.3]} 10. Nbxd2 {[%clk 0:03:00.2]} 10... Bg4 {[%clk 0:02:54.5]} 11.
Bxc6+ {[%clk 0:02:25]} 11... bxc6 {[%clk 0:02:53.8]} 12. Qa4 {[%clk 0:02:25.5]}
12... Bxd2+ {[%clk 0:02:41]} 13. Nxd2 {[%clk 0:02:24.8]} 13... Bd7 {[%clk
0:02:41.7]} 14. Qa3 {[%clk 0:02:21.7]} 14... Qe7 {[%clk 0:02:40.9]} 15. Qxe7+
{[%clk 0:02:11.2]} 15... Kxe7 {[%clk 0:02:41.8]} 16. Nb3 {[%clk 0:02:11.2]}
16... Rab8 {[%clk 0:02:40.7]} 17. O-O-O {[%clk 0:02:11.3]} 17... Rb5 {[%clk
0:02:36.3]} 18. Nc5 {[%clk 0:02:09]} 18... Rhb8 {[%clk 0:02:36]} 19. b3 {[%clk
0:02:06.4]} 19... Bf5 {[%clk 0:02:31.5]} 20. f3 {[%clk 0:02:01.5]} 20... Rxc5+
{[%clk 0:02:25.9]} 21. dxc5 {[%clk 0:02:00.9]} 21... Rb5 {[%clk 0:02:26.4]} 22.
Kb2 {[%clk 0:01:59.3]} 22... Rxc5 {[%clk 0:02:26.3]} 23. Rc1 {[%clk 0:01:59.5]}
23... Rxc1 {[%clk 0:02:26.2]} 24. Rxc1 {[%clk 0:01:59.3]} 24... Kd7 {[%clk
0:02:26.8]} 25. b4 {[%clk 0:01:55.9]} 25... h5 {[%clk 0:02:23.7]} 26. Kc3 {[%clk
0:01:55.5]} 26... c5 {[%clk 0:02:16.8]} 27. bxc5 {[%clk 0:01:54.7]} 27... c6
{[%clk 0:02:17]} 28. Kd4 {[%clk 0:01:54.5]} 28... Be6 {[%clk 0:02:16.9]} 29. Rc3
{[%clk 0:01:54.2]} 29... g6 {[%clk 0:02:16.8]} 30. Ra3 {[%clk 0:01:53.8]} 1-0

[Event "*** Titled Tuesday Blitz"]
[Site "Chess.com"]
[Date "2021.04.06"]
[Round "6"]
[White "Zhigalko_Sergei"]
[Black "beautroll"]
[Result "1-0"]
[WhiteElo "2893"]
[BlackElo "2466"]
[TimeControl "180+1"]
[EndTime "11:04:28 PDT"]
[Termination "Zhigalko_Sergei won by resignation"]

1. e4 {[%clk 0:03:00.9]} 1... d6 {[%clk 0:02:56.9]} 2. d4 {[%clk 0:03:00.8]}
2... Nf6 {[%clk 0:02:56.9]} 3. Nc3 {[%clk 0:03:01]} 3... g6 {[%clk 0:02:54.8]}
4. Nf3 {[%clk 0:02:58.7]} 4... Bg7 {[%clk 0:02:54.4]} 5. h3 {[%clk 0:02:59.1]}
5... O-O {[%clk 0:02:53.2]} 6. Be3 {[%clk 0:02:59]} 6... e5 {[%clk 0:02:39]} 7.
dxe5 {[%clk 0:02:48.7]} 7... dxe5 {[%clk 0:02:39.9]} 8. Qxd8 {[%clk 0:02:47.8]}
8... Rxd8 {[%clk 0:02:40]} 9. Bc4 {[%clk 0:02:48.7]} 9... h6 {[%clk 0:02:23.1]}
10. Nxe5 {[%clk 0:02:47.6]} 10... Nxe4 {[%clk 0:02:04.9]} 11. Nxf7 {[%clk
0:02:33.7]} 11... Bxc3+ {[%clk 0:01:59.6]} 12. bxc3 {[%clk 0:02:33.3]} 12... b5
{[%clk 0:01:29]} 13. Bb3 {[%clk 0:02:26.6]} 13... Re8 {[%clk 0:01:12.6]} 14.
Nd6+ {[%clk 0:02:22.4]} 14... Kf8 {[%clk 0:01:11.6]} 15. Bxh6+ {[%clk 0:02:17]}
15... Ke7 {[%clk 0:01:10.8]} 16. Nxe4 {[%clk 0:02:14.1]} 1-0

[Event "*** Titled Tuesday Blitz"]
[Site "Chess.com"]
[Date "2021.04.06"]
[Round "6"]
[White "Skat2704"]
[Black "Ind1anStar"]
[Result "1-0"]
[WhiteElo "2634"]
[BlackElo "2503"]
[TimeControl "180+1"]
[EndTime "11:04:44 PDT"]
[Termination "Skat2704 won by resignation"]

1. d4 {[%clk 0:03:00.9]} 1... d5 {[%clk 0:02:58.3]} 2. c4 {[%clk 0:02:59.7]}
2... e6 {[%clk 0:02:55.8]} 3. Nf3 {[%clk 0:02:58.4]} 3... Nf6 {[%clk 0:02:54.9]}
4. Nc3 {[%clk 0:02:56.7]} 4... dxc4 {[%clk 0:02:54.5]} 5. e3 {[%clk 0:02:55.7]}
5... a6 {[%clk 0:02:54.1]} 6. Bxc4 {[%clk 0:02:52]} 6... b5 {[%clk 0:02:52.7]}
7. Be2 {[%clk 0:02:51.5]} 7... Bb7 {[%clk 0:02:52.5]} 8. O-O {[%clk 0:02:49.1]}
8... Nbd7 {[%clk 0:02:52.3]} 9. b3 {[%clk 0:02:48.8]} 9... c5 {[%clk 0:02:51.8]}
10. Bb2 {[%clk 0:02:49.1]} 10... Be7 {[%clk 0:02:51.1]} 11. a4 {[%clk
0:02:48.3]} 11... b4 {[%clk 0:02:48.6]} 12. Nb1 {[%clk 0:02:48.5]} 12... O-O
{[%clk 0:02:47]} 13. Nbd2 {[%clk 0:02:48.2]} 13... Rc8 {[%clk 0:02:46.1]} 14.
Nc4 {[%clk 0:02:46.3]} 14... Nd5 {[%clk 0:02:45.2]} 15. Rc1 {[%clk 0:02:42.2]}
15... N7f6 {[%clk 0:02:41.6]} 16. Nfe5 {[%clk 0:02:41]} 16... Ne4 {[%clk
0:02:39.3]} 17. Bd3 {[%clk 0:02:36.5]} 17... Ndc3 {[%clk 0:01:54.7]} 18. Qc2
{[%clk 0:02:21.3]} 18... cxd4 {[%clk 0:01:08.4]} 19. Bxc3 {[%clk 0:02:18.4]}
19... dxc3 {[%clk 0:01:00.9]} 20. Bxe4 {[%clk 0:02:15.8]} 1-0

[Event "*** Titled Tuesday Blitz"]
[Site "Chess.com"]
[Date "2021.04.06"]
[Round "6"]
[White "Rodchenkov_Vitalij"]
[Black "gxbg2000"]
[Result "0-1"]
[WhiteElo "2145"]
[BlackElo "2010"]
[TimeControl "180+1"]
[EndTime "11:04:47 PDT"]
[Termination "gxbg2000 won by resignation"]

1. Nf3 {[%clk 0:03:00.9]} 1... Nf6 {[%clk 0:02:59.5]} 2. c4 {[%clk 0:02:56.4]}
2... c5 {[%clk 0:02:59.1]} 3. Nc3 {[%clk 0:02:54.3]} 3... g6 {[%clk 0:02:59.1]}
4. e4 {[%clk 0:02:52.1]} 4... d6 {[%clk 0:02:58.3]} 5. d4 {[%clk 0:02:50.5]}
5... cxd4 {[%clk 0:02:58]} 6. Nxd4 {[%clk 0:02:51.4]} 6... Nc6 {[%clk
0:02:58.2]} 7. g3 {[%clk 0:02:51.4]} 7... Bg7 {[%clk 0:02:58.4]} 8. Bg2 {[%clk
0:02:51.8]} 8... Ng4 {[%clk 0:02:57.8]} 9. Nxc6 {[%clk 0:02:35.1]} 9... Bxc3+
{[%clk 0:02:56.2]} 10. bxc3 {[%clk 0:02:34.8]} 10... bxc6 {[%clk 0:02:56.4]} 11.
O-O {[%clk 0:02:32.4]} 11... O-O {[%clk 0:02:55]} 12. Qd4 {[%clk 0:02:21.1]}
12... Ne5 {[%clk 0:02:53.6]} 13. f4 {[%clk 0:02:16.7]} 13... c5 {[%clk
0:02:53.4]} 14. Qd5 {[%clk 0:02:08.8]} 14... Be6 {[%clk 0:02:52.5]} 15. Qd1
{[%clk 0:02:04.2]} 15... Nxc4 {[%clk 0:02:49.1]} 16. f5 {[%clk 0:02:02.1]} 16...
Bd7 {[%clk 0:02:44.5]} 17. Bh6 {[%clk 0:02:00.5]} 17... Re8 {[%clk 0:02:43.8]}
18. e5 {[%clk 0:01:51.5]} 18... Nxe5 {[%clk 0:02:41.7]} 19. Bxa8 {[%clk
0:01:49.2]} 19... Qxa8 {[%clk 0:02:41.2]} 20. fxg6 {[%clk 0:01:43.1]} 20... hxg6
{[%clk 0:02:40.1]} 21. Qe2 {[%clk 0:01:37]} 21... a6 {[%clk 0:02:24.8]} 22. Rae1
{[%clk 0:01:37.1]} 22... Bb5 {[%clk 0:02:24.4]} 23. Qf2 {[%clk 0:01:22.8]} 23...
Bxf1 {[%clk 0:02:22.9]} 24. Rxf1 {[%clk 0:01:22.1]} 24... Qd5 {[%clk 0:02:19.6]}
25. Rb1 {[%clk 0:01:15.9]} 25... Ng4 {[%clk 0:02:18.7]} 26. Qe2 {[%clk
0:01:09.2]} 26... Nxh6 {[%clk 0:02:15.8]} 0-1

[Event "*** Titled Tuesday Blitz"]
[Site "Chess.com"]
[Date "2021.04.06"]
[Round "6"]
[White "Godzillator"]
[Black "Trickster_Pony"]
[Result "1-0"]
[WhiteElo "2301"]
[BlackElo "1551"]
[TimeControl "180+1"]
[EndTime "11:05:08 PDT"]
[Termination "Godzillator won by resignation"]

1. d4 {[%clk 0:03:00.9]} 1... d5 {[%clk 0:02:58.8]} 2. c4 {[%clk 0:03:01]} 2...
Nc6 {[%clk 0:02:58.7]} 3. cxd5 {[%clk 0:03:00.8]} 3... Qxd5 {[%clk 0:02:58.4]}
4. e3 {[%clk 0:03:01.2]} 4... e5 {[%clk 0:02:57.2]} 5. Nc3 {[%clk 0:03:01.3]}
5... Bb4 {[%clk 0:02:55.7]} 6. Bd2 {[%clk 0:03:01.7]} 6... Bxc3 {[%clk 0:02:55]}
7. bxc3 {[%clk 0:03:02.6]} 7... Nf6 {[%clk 0:02:53]} 8. Qb3 {[%clk 0:03:01.5]}
8... Qd6 {[%clk 0:02:37.1]} 9. Bc1 {[%clk 0:03:01.5]} 9... b6 {[%clk 0:02:26.3]}
10. Ba3 {[%clk 0:03:00.9]} 10... Qd5 {[%clk 0:02:14.3]} 11. Bc4 {[%clk
0:02:59.5]} 11... Qd7 {[%clk 0:02:13.7]} 12. Bb5 {[%clk 0:02:58.9]} 12... exd4
{[%clk 0:02:06.3]} 13. cxd4 {[%clk 0:02:57.5]} 13... a6 {[%clk 0:02:01.9]} 14.
Be2 {[%clk 0:02:51.1]} 14... Na5 {[%clk 0:01:59.5]} 15. Qb4 {[%clk 0:02:48.2]}
15... Nc6 {[%clk 0:01:53.2]} 16. Qc3 {[%clk 0:02:46.8]} 16... Bb7 {[%clk
0:01:46.2]} 17. Nf3 {[%clk 0:02:37.6]} 17... b5 {[%clk 0:01:32.1]} 18. O-O
{[%clk 0:02:32.4]} 18... b4 {[%clk 0:01:26.8]} 19. Bxb4 {[%clk 0:02:32]} 19...
Nd5 {[%clk 0:01:26.6]} 20. Qc5 {[%clk 0:02:27.1]} 20... Ndxb4 {[%clk 0:01:21.5]}
21. Rab1 {[%clk 0:02:27]} 21... Qd8 {[%clk 0:01:17.8]} 22. a3 {[%clk 0:02:25.4]}
22... a5 {[%clk 0:01:11.2]} 23. axb4 {[%clk 0:02:24.9]} 23... axb4 {[%clk
0:01:12.1]} 24. Bb5 {[%clk 0:02:24.3]} 24... Qf6 {[%clk 0:01:06.9]} 25. Ne5
{[%clk 0:02:22.2]} 25... Ra5 {[%clk 0:00:51.8]} 26. Bxc6+ {[%clk 0:02:21.1]}
26... Bxc6 {[%clk 0:00:45.1]} 27. Qxc6+ {[%clk 0:02:17.6]} 27... Qxc6 {[%clk
0:00:42.8]} 28. Nxc6 {[%clk 0:02:17.6]} 1-0

[Event "*** Titled Tuesday Blitz"]
[Site "Chess.com"]
[Date "2021.04.06"]
[Round "6"]
[White "TheMagicMaik"]
[Black "babyking1205"]
[Result "0-1"]
[WhiteElo "2413"]
[BlackElo "2577"]
[TimeControl "180+1"]
[EndTime "11:05:11 PDT"]
[Termination "babyking1205 won by resignation"]

1. e4 {[%clk 0:03:00.9]} 1... c5 {[%clk 0:02:55.6]} 2. Nf3 {[%clk 0:03:00.5]}
2... d6 {[%clk 0:02:55.5]} 3. d4 {[%clk 0:03:01]} 3... cxd4 {[%clk 0:02:56.4]}
4. Nxd4 {[%clk 0:03:01.6]} 4... Nf6 {[%clk 0:02:56.7]} 5. f3 {[%clk 0:03:01.9]}
5... a6 {[%clk 0:02:57.3]} 6. c4 {[%clk 0:03:02.3]} 6... Nc6 {[%clk 0:02:58]} 7.
Nc3 {[%clk 0:03:02.6]} 7... g6 {[%clk 0:02:58.6]} 8. Be3 {[%clk 0:03:02.9]} 8...
Bg7 {[%clk 0:02:59]} 9. Be2 {[%clk 0:03:01.4]} 9... O-O {[%clk 0:02:59.2]} 10.
O-O {[%clk 0:03:01.8]} 10... Nxd4 {[%clk 0:02:59.9]} 11. Bxd4 {[%clk 0:03:01.9]}
11... Be6 {[%clk 0:03:00.7]} 12. Rc1 {[%clk 0:03:01.2]} 12... Rc8 {[%clk
0:03:01]} 13. b3 {[%clk 0:02:59.7]} 13... Qa5 {[%clk 0:03:01]} 14. Qd2 {[%clk
0:02:55.9]} 14... Rfd8 {[%clk 0:03:01]} 15. Rfd1 {[%clk 0:02:55.9]} 15... Qh5
{[%clk 0:02:59.5]} 16. Be3 {[%clk 0:02:49.3]} 16... b5 {[%clk 0:02:50.3]} 17.
cxb5 {[%clk 0:02:43.4]} 17... axb5 {[%clk 0:02:50.4]} 18. Nxb5 {[%clk
0:02:31.7]} 18... Rxc1 {[%clk 0:02:50.4]} 19. Rxc1 {[%clk 0:02:30.6]} 19... d5
{[%clk 0:02:49.1]} 20. Nc7 {[%clk 0:02:20.1]} 20... Bc8 {[%clk 0:02:26.7]} 21.
Nxd5 {[%clk 0:02:00.9]} 21... Nxd5 {[%clk 0:02:25]} 22. exd5 {[%clk 0:02:00.9]}
22... Bb7 {[%clk 0:02:25.7]} 23. Rc5 {[%clk 0:01:40.5]} 23... Qh4 {[%clk
0:02:09.6]} 24. Qc2 {[%clk 0:01:15.6]} 24... Qe1+ {[%clk 0:02:06.6]} 25. Bf1
{[%clk 0:00:53.1]} 25... Qxe3+ {[%clk 0:02:07.5]} 26. Qf2 {[%clk 0:00:53.5]}
26... Qxf2+ {[%clk 0:02:07.2]} 27. Kxf2 {[%clk 0:00:54.4]} 27... Bd4+ {[%clk
0:02:07.9]} 0-1